[Event "*** SCC Grand Prix: Titled Tuesday Blitz"]
[Site "Chess.com"]
[Date "2020.06.02"]
[Round "6"]
[White "Ginger_GM"]
[Black "JesseKraai"]
[Result "1-0"]
[WhiteElo "2596"]
[BlackElo "2438"]
[TimeControl "180+1"]
[EndTime "11:08:44 PDT"]
[Termination "Ginger_GM won by resignation"]

1. e4 {[%clk 0:03:00.9]} 1... e6 {[%clk 0:02:59.7]} 2. Nf3 {[%clk 0:02:57.5]}
2... d5 {[%clk 0:02:59.9]} 3. e5 {[%clk 0:02:45.6]} 3... c5 {[%clk 0:02:59.8]}
4. b4 {[%clk 0:02:44.3]} 4... cxb4 {[%clk 0:02:57.9]} 5. d4 {[%clk 0:02:43.5]}
5... Nc6 {[%clk 0:02:57.8]} 6. a3 {[%clk 0:02:42.5]} 6... Nh6 {[%clk 0:02:56]}
7. axb4 {[%clk 0:02:40.9]} 7... Bxb4+ {[%clk 0:02:55.9]} 8. c3 {[%clk
0:02:40.4]} 8... Be7 {[%clk 0:02:55.7]} 9. h4 {[%clk 0:02:36.5]} 9... Bd7 {[%clk
0:02:52.9]} 10. Bd3 {[%clk 0:02:33.8]} 10... b5 {[%clk 0:02:49.6]} 11. Na3
{[%clk 0:02:10.2]} 11... b4 {[%clk 0:02:45.4]} 12. Nb5 {[%clk 0:02:10.2]} 12...
bxc3 {[%clk 0:02:42.7]} 13. Bg5 {[%clk 0:02:05.4]} 13... f6 {[%clk 0:02:21.6]}
14. exf6 {[%clk 0:01:51.7]} 14... Bxf6 {[%clk 0:02:21.1]} 15. Nd6+ {[%clk
0:01:42.1]} 15... Ke7 {[%clk 0:02:17.2]} 16. Qc1 {[%clk 0:01:12]} 16... Kxd6
{[%clk 0:01:54.5]} 17. Qa3+ {[%clk 0:01:08.4]} 17... Kc7 {[%clk 0:01:52.9]} 18.
Bf4+ {[%clk 0:01:09]} 18... e5 {[%clk 0:01:23.9]} 19. dxe5 {[%clk 0:01:08.2]}
19... Qe7 {[%clk 0:01:15]} 20. Qxc3 {[%clk 0:00:43.9]} 20... Ng4 {[%clk
0:00:55]} 21. O-O {[%clk 0:00:42.2]} 21... Nxe5 {[%clk 0:00:52.5]} 22. Nxe5
{[%clk 0:00:39.2]} 22... Bxe5 {[%clk 0:00:52.1]} 23. Rfe1 {[%clk 0:00:35.6]}
23... Rhe8 {[%clk 0:00:39.2]} 24. Bxe5+ {[%clk 0:00:31.9]} 24... Qxe5 {[%clk
0:00:33.6]} 25. Rxe5 {[%clk 0:00:31.4]} 25... Rxe5 {[%clk 0:00:33.6]} 26. Rc1
{[%clk 0:00:31.3]} 26... Rae8 {[%clk 0:00:30.9]} 27. Bb5 {[%clk 0:00:28.3]}
27... d4 {[%clk 0:00:28.8]} 28. Qa5+ {[%clk 0:00:25.2]} 28... Kd6 {[%clk
0:00:25.1]} 29. Qa3+ {[%clk 0:00:24.8]} 29... Kd5 {[%clk 0:00:19.7]} 30. Bxc6+
{[%clk 0:00:21.7]} 30... Bxc6 {[%clk 0:00:19.2]} 31. Qc5+ {[%clk 0:00:21.8]}
31... Ke6 {[%clk 0:00:19]} 32. Qxc6+ {[%clk 0:00:22]} 32... Kf5 {[%clk
0:00:19.6]} 33. Qd7+ {[%clk 0:00:21.7]} 33... Ke4 {[%clk 0:00:16.7]} 34. Re1+
{[%clk 0:00:20.9]} 34... Kd3 {[%clk 0:00:16.9]} 35. Rd1+ {[%clk 0:00:21.2]}
35... Ke2 {[%clk 0:00:16.7]} 36. Qxd4 {[%clk 0:00:21]} 1-0

[Event "*** SCC Grand Prix: Titled Tuesday Blitz"]
[Site "Chess.com"]
[Date "2020.06.02"]
[Round "6"]
[White "deribas12345"]
[Black "Susal_De_Silva"]
[Result "1-0"]
[WhiteElo "2563"]
[BlackElo "2352"]
[TimeControl "180+1"]
[EndTime "11:08:44 PDT"]
[Termination "deribas12345 won by resignation"]

1. d4 {[%clk 0:02:58.8]} 1... Nf6 {[%clk 0:03:00.2]} 2. c4 {[%clk 0:02:58.7]}
2... e6 {[%clk 0:03:00.2]} 3. Nc3 {[%clk 0:02:58.8]} 3... Bb4 {[%clk 0:03:00.2]}
4. f3 {[%clk 0:02:57.2]} 4... c5 {[%clk 0:02:59.3]} 5. a3 {[%clk 0:02:54.8]}
5... Bxc3+ {[%clk 0:02:56.6]} 6. bxc3 {[%clk 0:02:55.7]} 6... Qa5 {[%clk
0:02:56.8]} 7. Bd2 {[%clk 0:02:53.6]} 7... d6 {[%clk 0:02:54.1]} 8. e4 {[%clk
0:02:52]} 8... e5 {[%clk 0:02:53.2]} 9. d5 {[%clk 0:02:51]} 9... Nbd7 {[%clk
0:02:52.8]} 10. Bd3 {[%clk 0:02:51]} 10... Nb6 {[%clk 0:02:53]} 11. Ne2 {[%clk
0:02:46]} 11... Bd7 {[%clk 0:02:51.3]} 12. a4 {[%clk 0:02:44]} 12... a6 {[%clk
0:02:26.6]} 13. O-O {[%clk 0:02:38.7]} 13... O-O {[%clk 0:02:17.7]} 14. f4
{[%clk 0:02:33.8]} 14... Bg4 {[%clk 0:02:10.6]} 15. fxe5 {[%clk 0:02:29.2]}
15... dxe5 {[%clk 0:02:10.8]} 16. Rxf6 {[%clk 0:02:23.2]} 16... gxf6 {[%clk
0:02:06.2]} 17. Bh6 {[%clk 0:02:21.9]} 17... Kh8 {[%clk 0:01:49.8]} 18. Bxf8
{[%clk 0:02:09]} 18... Rxf8 {[%clk 0:01:49.5]} 19. Qd2 {[%clk 0:02:05.2]} 19...
Rg8 {[%clk 0:01:39.6]} 20. Rf1 {[%clk 0:01:50.9]} 20... Nd7 {[%clk 0:01:37.1]}
21. Ng3 {[%clk 0:01:48.1]} 21... Qxa4 {[%clk 0:01:24.7]} 22. Qh6 {[%clk
0:01:32.8]} 22... Rg6 {[%clk 0:01:15.5]} 23. Qe3 {[%clk 0:01:31.7]} 23... Qa5
{[%clk 0:01:12.2]} 24. h3 {[%clk 0:01:30.9]} 24... Qxc3 {[%clk 0:00:57]} 25.
hxg4 {[%clk 0:01:29.7]} 25... Rxg4 {[%clk 0:00:56.7]} 26. Nf5 {[%clk 0:01:26]}
26... a5 {[%clk 0:00:52.7]} 27. Qh3 {[%clk 0:01:20.4]} 27... Rg6 {[%clk
0:00:43.1]} 28. Ne7 {[%clk 0:01:19.6]} 28... Rg5 {[%clk 0:00:31.6]} 29. Qxd7
{[%clk 0:00:48.8]} 29... Qxd3 {[%clk 0:00:29.7]} 30. Qe8+ {[%clk 0:00:40.6]}
30... Kg7 {[%clk 0:00:29.7]} 31. Qg8+ {[%clk 0:00:35.5]} 31... Kh6 {[%clk
0:00:29.5]} 32. Rxf6+ {[%clk 0:00:33.8]} 32... Kh5 {[%clk 0:00:26.6]} 33. Qxh7+
{[%clk 0:00:32.9]} 33... Kg4 {[%clk 0:00:26.8]} 34. Qh3+ {[%clk 0:00:29.7]}
34... Qxh3 {[%clk 0:00:26.5]} 35. gxh3+ {[%clk 0:00:30.6]} 35... Kxh3+ {[%clk
0:00:26.9]} 36. Kf2 {[%clk 0:00:30.9]} 36... Rg4 {[%clk 0:00:24.2]} 37. Rh6+
{[%clk 0:00:28.3]} 1-0

[Event "*** SCC Grand Prix: Titled Tuesday Blitz"]
[Site "Chess.com"]
[Date "2020.06.02"]
[Round "6"]
[White "MPGM"]
[Black "GodDMuhammad"]
[Result "1-0"]
[WhiteElo "2540"]
[BlackElo "2306"]
[TimeControl "180+1"]
[EndTime "11:08:45 PDT"]
[Termination "MPGM won by resignation"]

1. d4 {[%clk 0:03:00.9]} 1... Nf6 {[%clk 0:02:59.1]} 2. c4 {[%clk 0:02:58.8]}
2... e6 {[%clk 0:02:56.8]} 3. Nf3 {[%clk 0:02:57.6]} 3... b6 {[%clk 0:02:56]} 4.
g3 {[%clk 0:02:54.8]} 4... Bb7 {[%clk 0:02:55.6]} 5. Bg2 {[%clk 0:02:54.9]} 5...
Be7 {[%clk 0:02:50.9]} 6. O-O {[%clk 0:02:54.7]} 6... O-O {[%clk 0:02:50.4]} 7.
Nc3 {[%clk 0:02:53.1]} 7... Na6 {[%clk 0:02:44.7]} 8. d5 {[%clk 0:02:49.3]} 8...
exd5 {[%clk 0:02:38.1]} 9. cxd5 {[%clk 0:02:50.2]} 9... Nc5 {[%clk 0:02:36.1]}
10. Nd4 {[%clk 0:02:46.9]} 10... a5 {[%clk 0:02:32]} 11. Re1 {[%clk 0:02:43.4]}
11... d6 {[%clk 0:02:28.6]} 12. e4 {[%clk 0:02:37.2]} 12... Re8 {[%clk
0:02:25.9]} 13. h3 {[%clk 0:02:30.7]} 13... Nfd7 {[%clk 0:02:11.6]} 14. f4
{[%clk 0:02:26.2]} 14... Bf6 {[%clk 0:02:06.2]} 15. Be3 {[%clk 0:02:15.8]} 15...
Nf8 {[%clk 0:01:46]} 16. Qd2 {[%clk 0:02:09.2]} 16... g6 {[%clk 0:01:31.6]} 17.
Nc6 {[%clk 0:01:53.1]} 17... Qd7 {[%clk 0:01:27.7]} 18. Kh2 {[%clk 0:01:36.8]}
18... Bxc3 {[%clk 0:01:03.8]} 19. Qxc3 {[%clk 0:01:20]} 19... Nxe4 {[%clk
0:01:03.3]} 20. Qc2 {[%clk 0:01:20.5]} 20... Nc5 {[%clk 0:00:50.7]} 21. Bd4
{[%clk 0:01:15.2]} 21... Rxe1 {[%clk 0:00:41.2]} 22. Rxe1 {[%clk 0:01:14.9]}
22... Re8 {[%clk 0:00:41.8]} 23. Qd2 {[%clk 0:00:50.9]} 23... Ba6 {[%clk
0:00:20.3]} 24. Bc3 {[%clk 0:00:47.4]} 24... f6 {[%clk 0:00:16.8]} 25. Re3
{[%clk 0:00:36.5]} 25... Na4 {[%clk 0:00:13.9]} 26. Bd4 {[%clk 0:00:32]} 26...
Nc5 {[%clk 0:00:13.1]} 27. Qe1 {[%clk 0:00:32.5]} 27... Rxe3 {[%clk 0:00:13.1]}
28. Qxe3 {[%clk 0:00:33.4]} 28... Qf7 {[%clk 0:00:13.6]} 29. g4 {[%clk
0:00:29.9]} 29... Bc4 {[%clk 0:00:12.6]} 30. b3 {[%clk 0:00:27.6]} 30... Bxd5
{[%clk 0:00:12.6]} 31. Bxd5 {[%clk 0:00:26.5]} 31... Qxd5 {[%clk 0:00:13.5]} 32.
Ne7+ {[%clk 0:00:26.8]} 1-0

[Event "*** SCC Grand Prix: Titled Tuesday Blitz"]
[Site "Chess.com"]
[Date "2020.06.02"]
[Round "6"]
[White "grzechu96"]
[Black "nikitakhoroshev"]
[Result "1-0"]
[WhiteElo "2632"]
[BlackElo "2452"]
[TimeControl "180+1"]
[EndTime "11:08:48 PDT"]
[Termination "grzechu96 won by resignation"]

1. e4 {[%clk 0:03:00.9]} 1... e6 {[%clk 0:02:58.4]} 2. d4 {[%clk 0:03:00.5]}
2... d5 {[%clk 0:02:58.3]} 3. Nc3 {[%clk 0:03:00.1]} 3... Nc6 {[%clk 0:02:58.1]}
4. e5 {[%clk 0:02:59.3]} 4... f6 {[%clk 0:02:58.1]} 5. Bb5 {[%clk 0:02:58.3]}
5... fxe5 {[%clk 0:02:53.5]} 6. Qh5+ {[%clk 0:02:52.9]} 6... g6 {[%clk
0:02:49.4]} 7. Qxe5 {[%clk 0:02:51.7]} 7... Nf6 {[%clk 0:02:49.2]} 8. Bg5 {[%clk
0:02:17.6]} 8... Be7 {[%clk 0:02:44.2]} 9. Nxd5 {[%clk 0:01:39.5]} 9... Qxd5
{[%clk 0:02:03.7]} 10. Bxf6 {[%clk 0:01:34.6]} 10... O-O {[%clk 0:01:08.7]} 11.
Bxc6 {[%clk 0:01:27.5]} 11... Bxf6 {[%clk 0:00:54.2]} 12. Qxd5 {[%clk
0:00:56.9]} 12... exd5 {[%clk 0:00:54.1]} 13. Bxd5+ {[%clk 0:00:57.8]} 13... Kg7
{[%clk 0:00:54.8]} 14. Ne2 {[%clk 0:00:51.5]} 14... Rd8 {[%clk 0:00:52]} 15. Bf3
{[%clk 0:00:49.6]} 15... Bxd4 {[%clk 0:00:50.7]} 16. Nxd4 {[%clk 0:00:47.1]}
16... Rxd4 {[%clk 0:00:51.6]} 17. Rd1 {[%clk 0:00:42.7]} 17... Rxd1+ {[%clk
0:00:48]} 18. Kxd1 {[%clk 0:00:43.6]} 18... Bf5 {[%clk 0:00:47.8]} 19. Kc1
{[%clk 0:00:42.4]} 19... c6 {[%clk 0:00:45.6]} 20. Rd1 {[%clk 0:00:41.3]} 20...
Re8 {[%clk 0:00:43.4]} 21. a4 {[%clk 0:00:27.8]} 21... a5 {[%clk 0:00:32.9]} 22.
b3 {[%clk 0:00:27.9]} 22... g5 {[%clk 0:00:31.4]} 23. h3 {[%clk 0:00:26.7]}
23... Kf6 {[%clk 0:00:30.5]} 24. Kb2 {[%clk 0:00:25.2]} 24... Be6 {[%clk
0:00:27]} 25. Rd2 {[%clk 0:00:21.7]} 25... h6 {[%clk 0:00:26.4]} 26. Kc3 {[%clk
0:00:19.5]} 26... Rc8 {[%clk 0:00:24.1]} 27. b4 {[%clk 0:00:18.3]} 27... b6
{[%clk 0:00:21.2]} 28. bxa5 {[%clk 0:00:16.9]} 28... bxa5 {[%clk 0:00:22.1]} 29.
Rd6 {[%clk 0:00:17.2]} 29... Ke5 {[%clk 0:00:19.9]} 30. Rxe6+ {[%clk 0:00:16.1]}
1-0

[Event "*** SCC Grand Prix: Titled Tuesday Blitz"]
[Site "Chess.com"]
[Date "2020.06.02"]
[Round "6"]
[White "Alexey_Spirin"]
[Black "Kapibara_Warri0r"]
[Result "1-0"]
[WhiteElo "2015"]
[BlackElo "2114"]
[TimeControl "180+1"]
[EndTime "11:08:50 PDT"]
[Termination "Alexey_Spirin won by checkmate"]

1. e4 {[%clk 0:03:00.9]} 1... e5 {[%clk 0:02:59.7]} 2. Nf3 {[%clk 0:03:00.5]}
2... Nc6 {[%clk 0:03:00]} 3. Bc4 {[%clk 0:03:00]} 3... Nf6 {[%clk 0:02:58.9]} 4.
d3 {[%clk 0:02:59.5]} 4... Be7 {[%clk 0:02:58.6]} 5. O-O {[%clk 0:02:58.9]} 5...
O-O {[%clk 0:02:58.9]} 6. Re1 {[%clk 0:02:55.5]} 6... d6 {[%clk 0:02:58.5]} 7.
Bb3 {[%clk 0:02:54]} 7... Kh8 {[%clk 0:02:54.8]} 8. c3 {[%clk 0:02:52.1]} 8...
Ng8 {[%clk 0:02:54.5]} 9. d4 {[%clk 0:02:50.4]} 9... Bg4 {[%clk 0:02:43.5]} 10.
dxe5 {[%clk 0:02:36]} 10... Nxe5 {[%clk 0:02:41.6]} 11. Nbd2 {[%clk 0:02:36.3]}
11... f5 {[%clk 0:02:20.8]} 12. exf5 {[%clk 0:02:29]} 12... Rxf5 {[%clk
0:02:04.6]} 13. Be6 {[%clk 0:02:24]} 13... Bxf3 {[%clk 0:01:51.7]} 14. Nxf3
{[%clk 0:02:19.6]} 14... Nxf3+ {[%clk 0:01:50.9]} 15. gxf3 {[%clk 0:02:19.2]}
15... Rf6 {[%clk 0:01:45.9]} 16. Qd3 {[%clk 0:02:07]} 16... Rg6+ {[%clk
0:01:43.3]} 17. Kh1 {[%clk 0:02:06.7]} 17... Nh6 {[%clk 0:01:16.5]} 18. Bf4
{[%clk 0:01:56.4]} 18... Bg5 {[%clk 0:01:11.8]} 19. Bg3 {[%clk 0:01:54.7]} 19...
Qf6 {[%clk 0:01:08.9]} 20. Bd5 {[%clk 0:01:49.8]} 20... Nf5 {[%clk 0:00:52.7]}
21. Be4 {[%clk 0:01:46.1]} 21... Nxg3+ {[%clk 0:00:50.5]} 22. fxg3 {[%clk
0:01:46.3]} 22... Rh6 {[%clk 0:00:44.7]} 23. Kg2 {[%clk 0:01:42.5]} 23... c6
{[%clk 0:00:37.3]} 24. f4 {[%clk 0:01:29.6]} 24... Bxf4 {[%clk 0:00:29]} 25. Rf1
{[%clk 0:01:09]} 25... Qe5 {[%clk 0:00:19.6]} 26. Rxf4 {[%clk 0:01:04]} 26... d5
{[%clk 0:00:19.5]} 27. Bf3 {[%clk 0:01:02.4]} 27... Re8 {[%clk 0:00:17.5]} 28.
Rf1 {[%clk 0:00:57.5]} 28... Qe6 {[%clk 0:00:12.8]} 29. Bg4 {[%clk 0:00:54.6]}
29... Qd6 {[%clk 0:00:11.4]} 30. Rf7 {[%clk 0:00:40.4]} 30... Qc5 {[%clk
0:00:06.2]} 31. Qd4 {[%clk 0:00:34.5]} 31... Qd6 {[%clk 0:00:05.5]} 32. Qxg7#
{[%clk 0:00:31.1]} 1-0

[Event "*** SCC Grand Prix: Titled Tuesday Blitz"]
[Site "Chess.com"]
[Date "2020.06.02"]
[Round "6"]
[White "DanielTitichoca"]
[Black "jerry_77"]
[Result "1-0"]
[WhiteElo "2322"]
[BlackElo "2462"]
[TimeControl "180+1"]
[EndTime "11:08:51 PDT"]
[Termination "DanielTitichoca won by resignation"]

1. c4 {[%clk 0:03:00]} 1... Nf6 {[%clk 0:02:58.4]} 2. g3 {[%clk 0:03:00.5]} 2...
e6 {[%clk 0:02:59.3]} 3. Bg2 {[%clk 0:03:00.7]} 3... d5 {[%clk 0:03:00.2]} 4.
Nf3 {[%clk 0:02:58.9]} 4... Be7 {[%clk 0:03:00.7]} 5. O-O {[%clk 0:02:58]} 5...
O-O {[%clk 0:03:01.3]} 6. b3 {[%clk 0:02:58]} 6... d4 {[%clk 0:03:01.6]} 7. Bb2
{[%clk 0:02:56.4]} 7... c5 {[%clk 0:03:02.1]} 8. e3 {[%clk 0:02:56.7]} 8... Nc6
{[%clk 0:03:02.7]} 9. exd4 {[%clk 0:02:57.2]} 9... cxd4 {[%clk 0:03:03.6]} 10.
Re1 {[%clk 0:02:57.8]} 10... Re8 {[%clk 0:03:03.4]} 11. Ne5 {[%clk 0:02:57.1]}
11... Nxe5 {[%clk 0:03:03.3]} 12. Rxe5 {[%clk 0:02:57.6]} 12... Nd7 {[%clk
0:03:03.5]} 13. Re1 {[%clk 0:02:57.1]} 13... e5 {[%clk 0:03:03.2]} 14. d3 {[%clk
0:02:55.2]} 14... Bf8 {[%clk 0:03:03.3]} 15. Na3 {[%clk 0:02:50.6]} 15... a5
{[%clk 0:03:02.7]} 16. Nb5 {[%clk 0:02:32]} 16... Ra6 {[%clk 0:02:57]} 17. a3
{[%clk 0:02:30]} 17... Nf6 {[%clk 0:02:52.6]} 18. h3 {[%clk 0:02:18.1]} 18... g6
{[%clk 0:02:47]} 19. Qe2 {[%clk 0:02:09]} 19... Bg7 {[%clk 0:02:30.4]} 20. g4
{[%clk 0:02:01.3]} 20... Rae6 {[%clk 0:02:20.5]} 21. Qc2 {[%clk 0:01:53.5]}
21... Nd7 {[%clk 0:02:12.6]} 22. b4 {[%clk 0:01:51.1]} 22... axb4 {[%clk
0:02:09.2]} 23. axb4 {[%clk 0:01:50.4]} 23... Kh8 {[%clk 0:01:53.8]} 24. c5
{[%clk 0:01:42.9]} 24... Nb8 {[%clk 0:01:52.5]} 25. Nd6 {[%clk 0:01:37.7]} 25...
Rxd6 {[%clk 0:01:45.9]} 26. cxd6 {[%clk 0:01:36.8]} 26... Qxd6 {[%clk
0:01:46.8]} 27. b5 {[%clk 0:01:32.3]} 27... Bd7 {[%clk 0:01:40.6]} 28. Ba3
{[%clk 0:01:26.7]} 28... Qf6 {[%clk 0:01:28.2]} 29. Qc4 {[%clk 0:01:18.1]} 29...
Rc8 {[%clk 0:01:26.3]} 30. Qd5 {[%clk 0:01:15.7]} 30... b6 {[%clk 0:01:24.5]}
31. Bd6 {[%clk 0:01:10]} 31... Qe6 {[%clk 0:01:19.6]} 32. Bxe5 {[%clk 0:01:06]}
32... Qxd5 {[%clk 0:01:17]} 33. Bxg7+ {[%clk 0:01:03.7]} 33... Kxg7 {[%clk
0:01:16.3]} 34. Bxd5 {[%clk 0:01:04.3]} 34... Bxb5 {[%clk 0:01:14.2]} 35. Rab1
{[%clk 0:01:03.4]} 35... Bxd3 {[%clk 0:01:13.1]} 36. Rxb6 {[%clk 0:01:02.5]}
36... Rd8 {[%clk 0:01:11.9]} 37. Ba2 {[%clk 0:00:58.5]} 37... Ba6 {[%clk
0:01:08.6]} 38. Re7 {[%clk 0:00:56]} 38... d3 {[%clk 0:01:08.8]} 39. Rxf7+
{[%clk 0:00:55.9]} 39... Kh8 {[%clk 0:01:05.2]} 40. Rbf6 {[%clk 0:00:42.2]}
40... Nd7 {[%clk 0:00:37.6]} 41. Rd6 {[%clk 0:00:38.4]} 41... Bb5 {[%clk
0:00:36.6]} 42. Be6 {[%clk 0:00:33.3]} 1-0

[Event "*** SCC Grand Prix: Titled Tuesday Blitz"]
[Site "Chess.com"]
[Date "2020.06.02"]
[Round "6"]
[White "Playgood28"]
[Black "louis198"]
[Result "0-1"]
[WhiteElo "2298"]
[BlackElo "2465"]
[TimeControl "180+1"]
[EndTime "11:08:51 PDT"]
[Termination "louis198 won by resignation"]

1. d4 {[%clk 0:03:00.9]} 1... Nf6 {[%clk 0:02:59.6]} 2. c4 {[%clk 0:03:00.5]}
2... c5 {[%clk 0:02:59.9]} 3. d5 {[%clk 0:02:59.5]} 3... b5 {[%clk 0:02:58.1]}
4. Qc2 {[%clk 0:02:58.9]} 4... bxc4 {[%clk 0:02:55.3]} 5. e4 {[%clk 0:02:58.4]}
5... d6 {[%clk 0:02:52.5]} 6. Bxc4 {[%clk 0:02:57.9]} 6... g6 {[%clk 0:02:52.5]}
7. Nf3 {[%clk 0:02:56.4]} 7... Bg7 {[%clk 0:02:52.6]} 8. O-O {[%clk 0:02:55.4]}
8... O-O {[%clk 0:02:51.3]} 9. h3 {[%clk 0:02:53]} 9... Ba6 {[%clk 0:02:49.5]}
10. Na3 {[%clk 0:02:51.5]} 10... Nfd7 {[%clk 0:02:46.5]} 11. Re1 {[%clk
0:02:45.9]} 11... Nb6 {[%clk 0:02:38.4]} 12. Be2 {[%clk 0:02:38.6]} 12... Bxe2
{[%clk 0:02:37.2]} 13. Rxe2 {[%clk 0:02:37.8]} 13... N8d7 {[%clk 0:02:36.9]} 14.
Bf4 {[%clk 0:02:34.8]} 14... Rb8 {[%clk 0:02:25.4]} 15. Rd1 {[%clk 0:02:33]}
15... h6 {[%clk 0:01:32.4]} 16. e5 {[%clk 0:01:54.6]} 16... dxe5 {[%clk
0:01:27]} 17. Nxe5 {[%clk 0:01:53.2]} 17... Nxe5 {[%clk 0:01:27.3]} 18. Bxe5
{[%clk 0:01:52.8]} 18... Bxe5 {[%clk 0:01:27.9]} 19. Rxe5 {[%clk 0:01:52.2]}
19... Qd6 {[%clk 0:01:24.8]} 20. Qe2 {[%clk 0:01:37.9]} 20... Rb7 {[%clk
0:01:17.5]} 21. b3 {[%clk 0:01:24.1]} 21... a5 {[%clk 0:01:02.6]} 22. Nb5 {[%clk
0:01:15.1]} 22... Qf6 {[%clk 0:00:56.8]} 23. a4 {[%clk 0:00:55.1]} 23... c4
{[%clk 0:00:56.5]} 24. bxc4 {[%clk 0:00:52.4]} 24... Nxc4 {[%clk 0:00:56]} 25.
Re4 {[%clk 0:00:39.7]} 25... Nd6 {[%clk 0:00:51.5]} 26. Nxd6 {[%clk 0:00:35.3]}
26... exd6 {[%clk 0:00:51.9]} 27. Qd2 {[%clk 0:00:24.1]} 27... Rb2 {[%clk
0:00:50.6]} 28. Qe3 {[%clk 0:00:22.5]} 28... Rc8 {[%clk 0:00:40.2]} 29. Rf4
{[%clk 0:00:22.1]} 29... Qg5 {[%clk 0:00:34.2]} 30. Qf3 {[%clk 0:00:18.5]} 30...
Rc7 {[%clk 0:00:29.4]} 31. h4 {[%clk 0:00:17.5]} 31... Qd8 {[%clk 0:00:23]} 32.
h5 {[%clk 0:00:17.2]} 32... g5 {[%clk 0:00:20.5]} 33. Rf6 {[%clk 0:00:16.8]}
33... Kg7 {[%clk 0:00:20.9]} 34. Qf5 {[%clk 0:00:15.3]} 34... Qxf6 {[%clk
0:00:20.7]} 0-1

[Event "*** SCC Grand Prix: Titled Tuesday Blitz"]
[Site "Chess.com"]
[Date "2020.06.02"]
[Round "6"]
[White "tomasdanada"]
[Black "Michaelson_11"]
[Result "0-1"]
[WhiteElo "2220"]
[BlackElo "2017"]
[TimeControl "180+1"]
[EndTime "11:08:51 PDT"]
[Termination "Michaelson_11 won on time"]

1. d4 {[%clk 0:03:00.9]} 1... Nf6 {[%clk 0:02:59.7]} 2. c4 {[%clk 0:03:00.7]}
2... e6 {[%clk 0:02:58.7]} 3. Nc3 {[%clk 0:03:00.9]} 3... Bb4 {[%clk 0:02:59.2]}
4. e3 {[%clk 0:03:00.8]} 4... d5 {[%clk 0:02:59]} 5. Nf3 {[%clk 0:02:59.2]} 5...
O-O {[%clk 0:02:48.4]} 6. Bd2 {[%clk 0:02:59.2]} 6... b6 {[%clk 0:02:36.3]} 7.
Rc1 {[%clk 0:02:55.8]} 7... Bb7 {[%clk 0:02:33.8]} 8. cxd5 {[%clk 0:02:47.6]}
8... exd5 {[%clk 0:02:17.7]} 9. Bd3 {[%clk 0:02:45.4]} 9... Be7 {[%clk
0:02:04.6]} 10. O-O {[%clk 0:02:42.9]} 10... c5 {[%clk 0:01:58.4]} 11. Ne5
{[%clk 0:02:34.2]} 11... Nbd7 {[%clk 0:01:55.7]} 12. f4 {[%clk 0:02:32]} 12...
Ne4 {[%clk 0:01:42.7]} 13. Be1 {[%clk 0:01:37.1]} 13... f6 {[%clk 0:01:32]} 14.
Nxd7 {[%clk 0:00:40.2]} 14... Qxd7 {[%clk 0:01:30.3]} 15. f5 {[%clk 0:00:24.8]}
15... Rac8 {[%clk 0:01:21.3]} 16. Qf3 {[%clk 0:00:10.6]} 16... Ng5 {[%clk
0:01:11]} 17. Qg4 {[%clk 0:00:08.4]} 17... cxd4 {[%clk 0:00:56]} 18. exd4 {[%clk
0:00:06.8]} 18... Bd6 {[%clk 0:00:55.1]} 19. h4 {[%clk 0:00:06.5]} 19... Nf7
{[%clk 0:00:55.2]} 20. Bd2 {[%clk 0:00:06.3]} 20... Kh8 {[%clk 0:00:53.1]} 21.
Rce1 {[%clk 0:00:05.8]} 21... a6 {[%clk 0:00:49.7]} 22. Re6 {[%clk 0:00:05.7]}
22... Rce8 {[%clk 0:00:43.7]} 23. Rfe1 {[%clk 0:00:04.8]} 23... Nd8 {[%clk
0:00:37.6]} 24. R6e3 {[%clk 0:00:02]} 24... Rxe3 {[%clk 0:00:32.6]} 25. Rxe3
{[%clk 0:00:02.9]} 25... Re8 {[%clk 0:00:33.5]} 26. Rh3 {[%clk 0:00:02.2]} 26...
Nf7 {[%clk 0:00:32.7]} 0-1

[Event "*** SCC Grand Prix: Titled Tuesday Blitz"]
[Site "Chess.com"]
[Date "2020.06.02"]
[Round "6"]
[White "Funo09"]
[Black "zaur-mammadov"]
[Result "1-0"]
[WhiteElo "2789"]
[BlackElo "2600"]
[TimeControl "180+1"]
[EndTime "11:08:52 PDT"]
[Termination "Funo09 won by resignation"]

1. e4 {[%clk 0:03:00.9]} 1... e6 {[%clk 0:02:59.6]} 2. Nc3 {[%clk 0:03:00.8]}
2... d5 {[%clk 0:02:59.7]} 3. d4 {[%clk 0:03:01.7]} 3... Nf6 {[%clk 0:02:58.8]}
4. Bg5 {[%clk 0:03:02.2]} 4... Be7 {[%clk 0:02:58.4]} 5. e5 {[%clk 0:03:02]}
5... Nfd7 {[%clk 0:02:58.9]} 6. h4 {[%clk 0:03:02.5]} 6... O-O {[%clk
0:02:58.9]} 7. Nh3 {[%clk 0:03:00]} 7... c5 {[%clk 0:02:57.1]} 8. Bd3 {[%clk
0:02:55]} 8... f6 {[%clk 0:02:49.2]} 9. exf6 {[%clk 0:02:35.4]} 9... Bxf6 {[%clk
0:02:34.5]} 10. Qh5 {[%clk 0:02:12.5]} 10... g6 {[%clk 0:02:17.6]} 11. Bxg6
{[%clk 0:01:59.8]} 11... hxg6 {[%clk 0:02:18.5]} 12. Qxg6+ {[%clk 0:01:59.9]}
12... Kh8 {[%clk 0:02:19]} 13. Nf4 {[%clk 0:01:56.6]} 13... Qe7 {[%clk
0:02:01.8]} 14. Qh6+ {[%clk 0:01:46.3]} 14... Kg8 {[%clk 0:01:53.6]} 15. Ng6
{[%clk 0:01:41.9]} 15... Qg7 {[%clk 0:01:47.3]} 16. Nxf8 {[%clk 0:01:39.9]}
16... Kxf8 {[%clk 0:01:32]} 17. Nb5 {[%clk 0:01:31.9]} 17... Na6 {[%clk
0:01:24.2]} 18. O-O-O {[%clk 0:01:30.7]} 18... Qxh6 {[%clk 0:00:56]} 19. Bxh6+
{[%clk 0:01:29.3]} 19... Kf7 {[%clk 0:00:56.4]} 20. g4 {[%clk 0:01:23.6]} 20...
Bxd4 {[%clk 0:00:46.2]} 21. Nxd4 {[%clk 0:01:22.8]} 21... cxd4 {[%clk
0:00:47.1]} 22. Rxd4 {[%clk 0:01:20]} 22... Nf6 {[%clk 0:00:36.9]} 23. f3 {[%clk
0:00:49.8]} 23... e5 {[%clk 0:00:34.3]} 24. Rd2 {[%clk 0:00:50.4]} 24... Be6
{[%clk 0:00:33.2]} 25. h5 {[%clk 0:00:48.4]} 25... Nc5 {[%clk 0:00:18.2]} 26. g5
{[%clk 0:00:46.6]} 26... Nfd7 {[%clk 0:00:18.6]} 27. g6+ {[%clk 0:00:44.4]}
27... Kf6 {[%clk 0:00:18.5]} 28. Rg2 {[%clk 0:00:43.4]} 28... Rg8 {[%clk
0:00:17.6]} 29. Bg5+ {[%clk 0:00:43.3]} 29... Kg7 {[%clk 0:00:14.7]} 30. Be3
{[%clk 0:00:30.4]} 30... Kf6 {[%clk 0:00:08.4]} 31. h6 {[%clk 0:00:27.3]} 31...
Nf8 {[%clk 0:00:05.7]} 32. h7 {[%clk 0:00:26.2]} 32... Nxh7 {[%clk 0:00:05.5]}
33. gxh7 {[%clk 0:00:24.4]} 1-0